bitfinex/quotes_ETHUSD_20240731
["timestamp","ask_amount","ask_price","bid_price","bid_amount"]
[1722455834600,3.0,3268.5,3267.4,3.06047]
[1722455834794,3.0,3268.9,3267.2,0.306073]
[1722455834998,3.55,3269.1,3266.9,3.06097]
[1722455834999,3.05952,3268.5,3266.9,3.06097]
[1722455835448,6.05961,3268.4,3266.7,5.50746]
[1722455835742,3.0,3268.4,3266.7,2.4463]
[1722455836038,3.0596,3268.4,3266.8,3.06101]
[1722455836241,3.0,3268.3,3266.8,3.06101]
[1722455836568,3.0,3268.3,3266.9,0.550731]
[1722455836911,3.06005,3268.0,3266.9,0.550731]
[1722455837172,3.0,3267.9,3266.7,2.4463]
[1722455837650,3.0,3268.0,3266.7,2.4463]
[1722455837864,3.06009,3267.9,3266.7,2.4463]
[1722455838171,3.0,3267.8,3266.7,2.4463]
[1722455838376,3.06037,3267.6,3266.7,2.4463]
[1722455838658,3.0,3267.5,3266.7,2.4463]
[1722455838807,6.0604,3267.6,3266.7,2.4463]
[1722455839010,6.06025,3267.8,3266.7,2.4463]
[1722455839354,3.0,3267.8,3266.7,2.69093]
[1722455839540,3.06003,3268.0,3266.8,0.0612121]
[1722455839879,3.06017,3267.8,3266.8,0.0612121]
[1722455840013,3.0,3267.7,3266.8,0.0612121]
[1722455840217,3.0,3267.7,3266.7,2.4463]
[1722455840418,3.0,3268.3,3266.7,2.4463]
[1722455840612,3.06023,3267.8,3266.7,2.4463]
[1722455840913,3.0,3267.7,3266.7,2.4463]
[1722455841335,3.06038,3267.6,3266.7,2.4463]
[1722455841537,3.0,3267.5,3266.7,2.4463]
[1722455841853,3.0,3267.7,3266.8,0.06121097]
[1722455842060,3.05988,3268.1,3266.9,0.5568701]
[1722455842061,3.0,3268.1,3266.9,0.5568701]
[1722455842228,3.05961,3268.4,3266.9,0.5568701]
[1722455842229,3.05964,3268.4,3266.9,0.5568701]
[1722455842415,3.0,3268.3,3266.9,0.5568701]
[1722455842754,3.0,3268.3,3267.0,0.0612029]
[1722455842912,3.05988,3268.1,3266.7,5.50743]
[1722455843109,3.0,3268.0,3266.8,3.06101]
[1722455843321,3.05988,3268.1,3266.7,5.50742]
[1722455843544,3.0,3268.0,3266.7,2.4463]
[1722455843765,127.15213003,3277.5,3266.8,0.30583292]
[1722455843766,3.0591,3269.0,3266.8,0.30583292]
[1722455843969,3.05923,3268.8,3267.1,3.0608]
[1722455844125,2.3161,3269.5,3266.8,0.24463]
[1722455844479,3.05976,3268.3,3266.9,0.575209]
[1722455844759,3.05943,3268.6,3267.2,3.06065]
[1722455844961,3.05979,3268.2,3266.8,0.24463]
[1722455845167,3.06004,3268.0,3266.8,0.24463]
[1722455845349,3.0,3267.9,3266.8,0.24463]
[1722455845532,3.0,3267.9,3266.9,0.06120653]
[1722455845733,3.05838,3269.7,3267.1,3.0608]
[1722455845734,3.0,3268.3,3267.1,3.0608]
[1722455845933,3.0,3268.5,3267.2,0.30608]
[1722455846230,3.0,3268.5,3266.8,3.30571]
[1722455846463,3.05987,3268.2,3266.8,0.24463]
[1722455846704,3.0,3268.1,3266.8,0.24463]
[1722455847016,3.0,3268.1,3267.0,3.06091]
[1722455847155,3.05965,3268.4,3266.8,0.24463]
[1722455847156,3.0,3268.3,3266.9,3.06098]
[1722455847351,3.0598,3268.2,3267.0,0.636664]
[1722455847602,3.0,3268.3,3266.8,0.24463]
[1722455847603,3.0,3268.1,3266.8,0.24463]
[1722455847816,3.0,3268.3,3267.1,0.0612023]
[1722455847977,3.29028,3269.4,3267.4,3.06045]
[1722455847978,3.05892,3269.2,3267.4,3.06045]
[1722455848320,0.23161,3269.4,3267.8,5.41866]
[1722455848613,0.23161,3269.4,3268.0,3.0599]
[1722455848820,0.23161,3269.4,3268.1,0.30599]
[1722455848967,3.29029,3269.4,3268.1,0.30599]
[1722455849166,3.29027,3269.4,3268.0,3.0599]
[1722455849410,3.05863,3269.5,3268.0,3.05995]
[1722455849716,3.05819,3269.9,3268.1,3.12105269]
[1722455849926,3.0584,3269.7,3268.1,3.12105269]
[1722455850129,3.05839,3269.7,3268.2,3.37188527]
[1722455850332,3.0582,3269.9,3268.3,3.12081821]
[1722455850530,2.54469716,3270.0,3268.4,3.0596]
[1722455850531,3.05836,3269.8,3268.4,3.0596]
[1722455850821,3.05826,3269.9,3268.5,0.06117675]
[1722455850969,3.05826,3269.9,3268.5,0.37326243]
[1722455851174,5.50019,3270.6,3268.5,0.31208568]
[1722455851175,3.05764,3270.5,3268.5,0.31208568]
[1722455851474,3.05764,3270.5,3267.8,2.3585]
[1722455851475,3.05812,3270.0,3267.8,2.3585]
[1722455851708,3.05879,3269.3,3267.8,5.41866]
[1722455851920,3.0591,3269.0,3267.8,2.3585]
[1722455852071,3.05941,3268.7,3267.8,2.3585]
[1722455852277,3.0594,3268.7,3267.8,2.3585]
[1722455852710,3.0,3268.6,3267.1,5.4226]
[1722455852907,3.05925,3268.8,3267.3,3.06057]
[1722455853126,3.0,3268.7,3267.5,3.0604]
[1722455853279,3.0,3268.7,3267.7,3.06025]
[1722455853980,3.0,3269.1,3267.9,3.06]
[1722455854300,3.05776,3270.4,3267.9,3.06]
[1722455854301,6.05883,3269.3,3268.0,0.06118284]
[1722455854490,6.05883,3269.3,3268.1,0.31211828]
[1722455854491,3.0,3269.3,3268.1,0.31211828]
[1722455854671,3.05885,3269.2,3267.2,0.84835]
[1722455854872,3.0,3269.1,3267.3,0.55]
[1722455855186,3.05913,3269.0,3267.5,3.06041]
[1722455855389,3.0,3268.9,3267.5,3.06041]
[1722455855601,3.0592,3268.9,3267.5,3.06041]
[1722455855802,3.0,3268.8,3267.6,0.306041]
[1722455856014,3.0,3268.8,3267.2,0.84835]
[1722455856229,3.0595,3268.6,3267.2,0.84835]
[1722455856427,3.05966,3268.4,3267.2,0.84835]
[1722455856587,3.05958,3268.5,3266.8,0.24463]
[1722455856588,3.05807,3270.1,3267.9,2.4781]
[1722455856788,3.05885,3269.2,3267.9,2.4781]
[1722455856990,3.05895,3269.1,3267.9,2.4781]
[1722455857211,3.0,3269.0,3267.9,2.4781]
[1722455858284,3.05924,3268.8,3268.0,0.06118613]
[1722455858634,6.0587,3269.4,3267.3,0.306072]
[1722455858635,3.05958,3268.5,3267.3,0.306072]
[1722455858842,3.0,3268.4,3267.2,2.4781]
[1722455859018,3.05978,3268.2,3267.2,2.4781]
[1722455859184,3.0,3268.1,3267.3,0.0611988]
[1722455859547,3.0,3268.3,3267.3,0.25392988]
[1722455859689,3.0,3268.4,3267.3,0.25392988]
[1722455859880,3.0,3268.4,3267.4,0.06119882]
[1722455860097,3.21337104,3269.4,3267.4,0.06119882]
[1722455860317,3.05881,3269.3,3267.9,3.06001]
[1722455860503,3.05881,3269.3,3268.0,0.67320197]
[1722455860799,5.32243,3270.4,3268.0,3.73316197]
[1722455860800,3.05842,3269.7,3268.0,3.73316197]
[1722455861023,3.05798,3270.2,3268.0,3.73316197]
[1722455861024,3.05819,3269.9,3268.0,3.73316197]
[1722455861244,3.05839,3269.7,3268.4,3.05959]
[1722455861582,3.05862,3269.5,3268.5,0.06117767]
[1722455861752,3.0,3269.4,3268.5,0.06117767]
[1722455861894,3.0,3269.5,3268.5,0.06117767]
[1722455862088,3.0,3269.6,3268.5,0.06117767]
[1722455862706,3.05813,3270.0,3268.6,0.23873777]
[1722455863047,3.05813,3270.0,3268.7,0.06117488]
[1722455863349,3.05813,3270.0,3268.8,0.06117453]
[1722455863692,2.2647,3270.4,3268.6,0.23873777]
[1722455863693,3.05835,3269.8,3268.6,0.23873777]
[1722455863994,3.05858,3269.5,3268.4,2.3262]
[1722455864193,3.0,3269.4,3268.4,2.3262]
[1722455864439,3.05853,3269.6,3268.5,0.06118189]
[1722455864644,3.0,3269.5,3268.5,0.06118189]
[1722455864955,3.0,3269.7,3268.6,3.05939]
[1722455865235,6.11651,3269.9,3268.7,0.06117214]
[1722455865441,3.05844,3269.7,3268.8,0.06117214]
[1722455865650,3.0,3269.8,3268.0,3.05989]
[1722455865809,3.0,3269.8,3267.8,5.51521]
[1722455865810,3.05877,3269.3,3267.8,5.51517]
[1722455866013,3.05877,3269.3,3267.9,3.06005]
[1722455866227,3.05901,3269.1,3268.0,0.551515]
[1722455866544,3.0,3269.2,3268.0,0.551515]
[1722455866755,3.05885,3269.2,3268.0,0.551515]
[1722455867136,3.0,3269.1,3268.1,0.06118421]
[1722455867449,3.364647,3269.3,3268.1,3.12098421]
[1722455867450,3.0,3269.2,3268.1,3.12098421]
[1722455867751,3.305877,3269.3,3268.1,0.36724992]
[1722455867933,3.0,3269.5,3268.3,3.05968]
[1722455868275,3.0,3269.5,3268.4,0.06117764]
[1722455868861,3.0,3269.5,3268.1,3.05983]
[1722455869037,6.05863,3269.5,3268.1,3.05983]
[1722455869242,6.05863,3269.5,3268.0,0.551515]
[1722455869551,6.05863,3269.5,3268.2,3.05972]
[1722455870208,6.05863,3269.5,3268.1,0.3611535]
[1722455870408,3.05881,3269.3,3268.1,0.3611535]
[1722455870659,3.05909,3269.0,3268.0,0.551515]
[1722455870962,3.0,3268.9,3267.8,2.4551]
[1722455871113,3.05919,3268.9,3267.8,2.4551]
[1722455871308,6.05927,3268.8,3267.8,2.4551]
[1722455872353,6.971104,3268.8,3267.8,2.4551]
[1722455872851,3.911834,3268.8,3267.8,2.4551]
[1722455873019,3.0,3268.9,3267.8,2.4551]
[1722455873221,3.0,3269.1,3268.1,3.05987]
[1722455873422,3.05872,3269.4,3268.1,3.05987]
[1722455873669,6.05876,3269.3,3267.9,3.06001]
[1722455873810,3.05892,3269.2,3267.8,5.51524]
[1722455874009,3.0,3269.1,3267.9,3.917606]
[1722455874328,3.0,3269.3,3268.1,3.05979]
[1722455874524,3.0,3269.3,3268.2,0.06117938]
[1722455874724,3.0,3269.3,3268.3,0.06117938]
[1722455875132,3.05849,3269.6,3268.3,3.12079938]
[1722455875435,3.05847,3269.6,3268.4,0.31207994]
[1722455875642,3.05834,3269.8,3268.5,0.06117318]
[1722455875822,3.2115571,3270.0,3268.5,3.12065318]
[1722455876155,3.05835,3269.8,3268.5,0.06117318]
[1722455876657,3.05857,3269.5,3268.5,0.06117318]
[1722455876887,3.05876,3269.3,3267.9,0.857546]
[1722455877174,3.0,3269.4,3267.9,0.857546]
[1722455877378,3.670316,3269.5,3267.9,0.857546]
[1722455877531,3.05909,3269.0,3267.8,2.4551]
[1722455877734,3.0,3268.9,3267.8,2.4551]
[1722455878041,6.0592,3268.9,3267.8,2.4551]
[1722455878244,3.0592,3268.9,3267.8,2.4551]
[1722455878440,3.0,3269.4,3267.8,2.4551]
[1722455878441,3.05898,3269.1,3267.8,2.4551]
[1722455878639,3.05934,3268.7,3267.8,2.4551]
[1722455878830,0.611706,3269.5,3267.8,2.4551]
[1722455878831,3.05917,3268.9,3267.8,2.4551]
[1722455879040,6.05929,3268.8,3267.8,2.4551]
[1722455879245,3.0,3268.7,3267.8,2.4551]
[1722455879623,3.05904,3269.0,3267.8,2.4551]
[1722455879624,3.0,3268.9,3267.8,2.4551]
[1722455879933,3.05928,3268.8,3267.9,0.55153]
[1722455880184,3.05928,3268.8,3267.8,2.4551]
[1722455880185,6.05933,3268.7,3267.8,2.4551]
[1722455880338,3.0,3268.9,3267.8,2.4551]
[1722455880540,0.55,3269.4,3267.9,0.06119179]
[1722455880773,3.05928,3268.8,3267.9,0.06119219]
[1722455880972,3.05942,3268.6,3267.9,0.06119219]
[1722455881274,3.05942,3268.6,3267.8,2.4551]
[1722455881275,3.0,3268.5,3267.8,2.4551]
[1722455881595,3.05949,3268.6,3267.8,2.4551]
[1722455881795,3.0,3268.5,3267.9,0.0611922]
[1722455881999,3.0,3268.6,3267.9,0.0611922]
[1722455882273,6.11822,3269.0,3267.3,0.25392988]
[1722455882274,3.0,3268.9,3267.3,0.25392988]
[1722455882506,3.05951,3268.5,3267.3,0.25392988]
[1722455882777,3.0,3268.9,3267.5,3.06037]
[1722455882778,3.05928,3268.8,3267.5,3.06037]
[1722455882978,3.05928,3268.8,3267.3,0.25392988]
[1722455882979,3.0,3268.7,3267.6,3.1215222]
[1722455883344,3.05943,3268.6,3267.6,0.0611922]
[1722455883570,3.0,3268.5,3267.6,0.0611922]
[1722455883789,3.0,3268.7,3267.6,0.0611922]
[1722455884134,6.05913,3268.9,3267.6,3.1214822]
[1722455884367,6.05913,3268.9,3267.3,3.31449988]
[1722455884368,3.05924,3268.8,3267.7,0.06118724]
[1722455884707,3.0,3268.9,3267.8,0.06119195]
[1722455884708,3.0,3268.7,3267.8,0.06119195]
[1722455885360,3.0,3268.7,3267.3,0.25392988]
[1722455885361,3.05974,3268.3,3267.3,0.25392988]
[1722455885572,3.05974,3268.3,3267.2,2.3923]
[1722455885573,3.05968,3268.4,3267.2,2.3923]
[1722455885906,3.05995,3268.1,3267.2,2.3923]
[1722455886200,3.0,3268.0,3267.2,5.45296]
[1722455886424,3.0,3268.0,3267.3,3.12181824]
[1722455886581,3.0,3268.2,3267.2,2.3923]
[1722455886794,3.0,3268.4,3267.3,0.545306]
[1722455886977,3.0,3268.6,3267.4,0.06119691]
[1722455887180,3.0,3268.6,3267.3,0.545306]
[1722455887181,3.05974,3268.3,3267.3,0.545306]
[1722455887429,3.0,3268.2,3267.4,0.06119691]
[1722455887626,3.05951,3268.5,3267.4,0.06119691]
[1722455887627,3.0,3268.4,3267.4,0.06119691]
[1722455888423,3.0,3268.4,3267.2,2.3923]
[1722455888632,3.0,3268.6,3267.4,3.06045]
[1722455888926,3.05942,3268.6,3267.5,0.31216469]
[1722455889423,3.0,3268.5,3267.5,0.31216469]
[1722455889628,3.0,3268.5,3267.2,2.3923]
[1722455889833,3.05967,3268.4,3267.2,2.3923]
[1722455890138,3.0,3268.3,3267.2,2.3923]
[1722455890278,3.06002,3268.0,3267.2,2.3923]
[1722455890478,3.06002,3268.0,3266.4,2.4879]
[1722455890479,0.306002,3268.0,3266.4,2.4879]
[1722455890706,3.0,3268.3,3266.4,2.4879]
[1722455890707,3.06039,3267.6,3266.4,2.4879]
[1722455890981,3.06055,3267.4,3266.4,2.4879]
[1722455891206,3.0,3267.5,3266.4,2.4879]
[1722455891407,3.06059,3267.4,3266.4,2.4879]
[1722455891715,3.0,3267.3,3266.4,2.4879]
[1722455892231,3.0,3267.3,3266.4,2.73669]
[1722455892432,3.0,3267.6,3266.5,0.06121371]
[1722455892732,3.06045,3267.5,3266.5,0.06121371]
[1722455893099,3.0,3267.4,3266.5,3.12258371]
[1722455893302,3.0,3267.6,3266.5,0.06121371]
[1722455893500,3.0,3267.6,3266.5,0.95330108]
[1722455893799,3.0,3267.7,3266.5,0.95330108]
[1722455894201,3.06059,3267.4,3266.4,2.4879]
[1722455894406,6.06066,3267.3,3266.4,2.4879]
[1722455894724,3.0,3267.3,3266.4,2.4879]
[1722455895129,3.06039,3267.6,3266.4,2.4879]
[1722455895296,3.06087,3267.1,3266.4,2.4879]
[1722455895494,6.06092,3267.0,3266.4,2.4879]
[1722455895693,3.061,3266.9,3266.4,2.4879]
[1722455896112,3.0,3266.8,3265.6,5.36351]
[1722455896295,6.06098,3267.0,3265.7,0.536351]
[1722455896494,3.06124,3266.7,3265.7,0.536351]
[1722455896728,3.06115,3266.8,3265.6,2.3013]
[1722455896915,3.0,3266.7,3265.6,5.36351]
[1722455897334,3.0,3266.7,3265.6,2.3013]
[1722455897542,3.06125,3266.7,3265.6,2.3013]
[1722455897708,3.06105,3266.9,3265.6,2.3013]
[1722455897709,3.06157,3266.3,3265.6,2.3013]
[1722455898333,3.0,3266.2,3265.6,2.3013]
[1722455898532,3.0,3266.4,3265.6,2.3013]
[1722455898835,6.06154,3266.4,3265.6,2.3013]
[1722455899411,3.06158,3266.3,3265.6,2.3013]
[1722455899609,3.06176,3266.1,3265.6,2.3013]
[1722455899949,3.06158,3266.3,3265.6,2.3013]
[1722455900120,6.06166,3266.2,3265.0,2.4947]
[1722455900469,6.06166,3266.2,3265.1,0.24947]
[1722455901041,3.0,3266.2,3265.1,0.24947]
[1722455901250,3.0,3266.2,3265.0,2.4947]
[1722455901420,3.06193,3266.0,3265.0,2.4947]
[1722455901619,3.0,3265.9,3265.0,2.4947]
[1722455901808,3.0,3266.0,3265.0,2.4947]
[1722455902152,3.0,3266.0,3265.1,0.06123961]
[1722455902361,3.06145,3266.5,3265.2,3.06252]
[1722455902561,3.0,3266.6,3265.1,0.06123961]
[1722455902562,6.06147,3266.4,3265.3,0.06123419]
[1722455902707,3.06147,3266.4,3265.3,0.06123419]
[1722455902906,3.0,3266.3,3265.3,0.06123419]
[1722455903167,3.0,3266.3,3265.3,0.37362661]
[1722455903445,3.0,3266.3,3265.0,2.4947]
[1722455903603,6.06162,3266.3,3265.1,0.06123797]
[1722455904048,3.06183,3266.1,3265.0,2.4947]
[1722455904215,6.06186,3266.0,3265.0,2.4947]
[1722455904418,3.0,3266.0,3265.0,2.4947]
[1722455904624,3.06187,3266.0,3265.0,3.050466]
[1722455904811,3.0,3265.9,3265.0,3.050466]
[1722455905008,3.0,3265.9,3264.2,3.06353]
[1722455905009,3.06256,3265.3,3264.2,2.2752]
[1722455905235,6.06198,3265.9,3264.2,2.2752]
[1722455905236,3.06242,3265.4,3264.2,2.2752]
[1722455905551,3.0,3265.2,3264.3,0.06125741]
[1722455905720,3.0624,3265.5,3264.3,0.06125741]
[1722455905923,6.06241,3265.4,3264.3,0.06125741]
[1722455906129,0.912481,3265.3,3264.3,0.06125741]
[1722455906377,3.06276,3265.1,3264.3,0.06125741]
[1722455906516,3.0,3265.0,3264.3,0.06125741]
[1722455906913,3.0,3265.4,3264.4,3.06334]
[1722455907042,3.0,3265.5,3264.5,0.06125084]
[1722455907245,3.06206,3265.8,3264.5,0.06125084]
[1722455907246,3.0,3265.7,3264.5,0.06125084]
[1722455907491,3.06228,3265.6,3264.5,0.06125084]
[1722455907859,3.0,3265.5,3264.5,0.06125084]
[1722455908265,3.0,3265.5,3264.7,3.06304]
[1722455908469,5.53795,3266.8,3265.0,3.06278]
[1722455908688,3.06143,3266.5,3265.1,3.12392077]
[1722455908867,3.06181,3266.1,3265.1,0.06124077]
[1722455909232,3.06085,3267.1,3265.5,3.06226]
[1722455909497,3.06047,3267.5,3265.9,3.06192]
[1722455909699,3.06047,3267.5,3266.1,2.4257]
[1722455909845,3.06106,3266.9,3266.1,2.4257]
[1722455910293,0.612191,3266.9,3266.1,2.4257]
[1722455910494,3.06042,3267.6,3266.2,0.06122565]
[1722455910668,3.06079,3267.2,3266.2,0.06122565]
[1722455911006,3.06079,3267.2,3266.1,2.4257]
[1722455911150,3.0,3267.1,3266.3,0.06122078]
[1722455911351,3.0,3267.3,3266.1,2.4257]
[1722455911547,3.0,3267.4,3266.2,3.30422]
[1722455911855,3.06055,3267.4,3266.2,0.24257]
[1722455912051,3.0,3267.3,3266.2,0.24257]
[1722455912313,3.06068,3267.3,3266.2,0.24257]
[1722455912596,3.06068,3267.3,3266.1,2.4257]
[1722455912597,3.0,3267.2,3266.1,2.4257]
[1722455912798,3.06084,3267.1,3266.1,2.4257]
[1722455913008,3.0,3267.0,3266.1,2.4257]
[1722455913695,6.06095,3267.0,3266.1,2.4257]
[1722455914013,3.912179,3267.0,3266.1,2.4257]
[1722455914307,3.0,3266.9,3266.1,2.4257]
[1722455914450,3.0,3266.9,3266.2,0.06122037]
[1722455914652,6.06065,3267.3,3266.2,0.06122037]
[1722455914898,3.0,3267.3,3266.2,0.06122037]
[1722455915097,3.0,3267.3,3266.3,0.06122038]
[1722455915305,6.06053,3267.4,3266.3,0.55485204]
[1722455915469,3.06023,3267.8,3266.4,0.06121443]
[1722455915792,0.15408549,3268.1,3266.8,3.06108]
[1722455915971,3.05999,3268.0,3266.9,0.06120784]
[1722455916272,3.06017,3267.8,3266.9,0.06120784]
[1722455916453,0.612016,3267.8,3266.9,0.06120784]
[1722455916657,3.05999,3268.0,3266.9,0.06120784]
[1722455916959,3.05995,3268.1,3266.9,0.06120784]
[1722455917288,3.0,3268.0,3266.9,0.06120784]
[1722455918127,6.05999,3268.0,3266.9,0.06120784]
[1722455918252,3.0,3268.0,3266.9,0.06120784]
[1722455918458,3.05962,3268.4,3267.0,2.3923]
[1722455918697,3.05942,3268.6,3267.2,3.06071]
[1722455918871,3.05942,3268.6,3267.3,0.06120069]
[1722455919194,5.54087,3269.4,3267.4,3.06052]
[1722455919195,3.05917,3268.9,3267.4,3.06052]
[1722455919395,2.4822,3269.4,3267.5,0.0611953]
[1722455919622,3.05898,3269.1,3267.6,3.06028]
[1722455919756,3.05885,3269.2,3267.7,0.0611903]
[1722455919953,3.05885,3269.2,3267.0,2.3923]
[1722455919954,3.6740646,3269.3,3268.0,3.05992]
[1722455920314,3.05885,3269.2,3268.1,0.06118571]
[1722455920473,0.6152546,3269.3,3268.1,0.06118571]
[1722455920792,3.05909,3269.0,3268.1,0.06118571]
[1722455920955,3.05923,3268.8,3268.1,0.06118571]
[1722455921455,2.4822,3270.1,3267.3,2.2915]
[1722455921456,3.05998,3268.0,3267.3,2.2915]
[1722455921697,3.05974,3268.3,3267.3,2.2915]
[1722455922013,3.0,3267.9,3267.3,2.2915]
[1722455922185,0.305974,3268.2,3267.3,2.2915]
[1722455922186,3.0,3268.0,3267.3,2.2915]
[1722455922385,3.06022,3267.8,3266.5,3.06131]
[1722455922709,3.06026,3267.7,3266.5,3.06131]
[1722455922890,3.0,3267.7,3266.3,2.4584]
[1722455923055,3.0,3267.7,3266.5,3.06132]
[1722455923273,3.0,3267.8,3266.7,3.06113]
[1722455923539,3.0,3268.0,3266.9,3.06099]
[1722455923676,3.0,3268.1,3267.0,0.06120621]
[1722455923878,3.0,3268.2,3267.0,0.06120621]
[1722455924415,3.05996,3268.1,3266.6,3.06126]
[1722455924619,3.0,3268.0,3266.7,3.06119]
[1722455924934,3.06028,3267.7,3266.4,0.24584]
[1722455925228,3.05973,3268.3,3266.4,0.24584]
[1722455925229,3.0597,3268.3,3266.4,0.24584]
[1722455925375,3.06063,3267.3,3266.3,2.4584]
[1722455925576,3.06085,3267.1,3266.3,2.4584]
[1722455925796,3.0,3267.0,3266.3,2.4584]
[1722455925990,6.06087,3267.1,3266.3,2.4584]
[1722455926194,3.06113,3266.8,3266.3,2.4584]
[1722455926505,3.06097,3267.0,3266.3,2.4584]
[1722455926700,6.061,3266.9,3266.3,2.4584]
[1722455926897,3.0,3266.9,3266.3,2.4584]
[1722455927133,3.0,3267.0,3266.3,2.4584]
[1722455927494,6.06083,3267.1,3266.3,2.4584]
[1722455927727,3.06092,3267.0,3266.3,2.4584]
[1722455927921,6.06101,3266.9,3266.3,2.4584]
[1722455928304,6.06101,3266.9,3265.4,2.2759]
[1722455928305,3.0,3266.9,3265.4,2.2759]
[1722455928505,3.06153,3266.4,3265.4,2.2759]
[1722455928820,3.0,3266.3,3265.4,2.2759]
[1722455929516,6.06143,3266.5,3265.4,2.2759]
[1722455929722,3.06148,3266.4,3265.5,0.22759]
[1722455929896,3.0,3266.3,3265.4,2.2759]
[1722455930088,3.06176,3266.1,3265.4,2.2759]
[1722455930294,3.0,3266.3,3264.8,2.3202]
[1722455930295,3.0,3266.0,3264.8,2.3202]
[1722455930591,3.0,3266.2,3264.8,2.3202]
[1722455930918,3.06213,3265.7,3264.8,2.3202]
[1722455931123,3.0,3265.6,3264.8,2.55222]
[1722455931697,3.0,3265.7,3264.9,0.06124472]
[1722455931910,3.06182,3266.1,3264.9,0.06124472]
[1722455932242,3.0,3266.0,3264.9,3.12406472]
[1722455932533,3.06142,3266.5,3265.1,3.06268]
[1722455932534,3.0,3266.1,3265.1,3.06268]
[1722455932738,3.0,3266.4,3265.2,0.36750784]
[1722455932948,3.0,3266.4,3264.8,2.55222]
[1722455932949,3.06076,3267.2,3265.3,0.06122929]
[1722455933096,3.06097,3267.0,3265.7,2.3928]
[1722455933301,3.06073,3267.2,3265.8,0.06122731]
[1722455933598,3.06073,3267.2,3265.9,3.06192]
[1722455933806,3.06098,3267.0,3266.0,0.67973999]
[1722455934110,3.06098,3267.0,3265.7,5.45492]
[1722455934111,3.06115,3266.8,3265.7,2.3928]
[1722455934307,3.06137,3266.6,3265.7,2.3928]
[1722455934508,3.06113,3266.8,3265.8,0.06123427]
[1722455934856,3.0,3266.7,3265.8,0.06123427]
[1722455935069,3.06097,3267.0,3265.8,0.06123427]
[1722455935216,3.06097,3267.0,3265.7,5.45484]
[1722455935217,3.0,3266.9,3265.9,0.55160743]
[1722455935532,3.06135,3266.6,3265.7,2.3928]
[1722455935733,3.06135,3266.6,3265.1,3.06267]
[1722455935734,3.0615,3266.4,3265.1,2.328]
[1722455936138,3.0,3266.3,3265.1,2.328]
[1722455936604,3.06201,3265.9,3265.1,2.328]
[1722455936797,3.0,3265.8,3265.1,2.328]
[1722455937349,3.0,3265.8,3265.2,0.06124261]
[1722455937497,3.0,3266.5,3265.1,2.5608]
[1722455937954,3.06114,3266.8,3265.1,2.5608]
[1722455938098,3.0,3266.7,3265.2,3.06259]
[1722455938301,3.0,3266.7,3265.1,2.5608]
[1722455938302,3.06158,3266.3,3265.1,2.5608]
[1722455938501,3.06132,3266.6,3265.2,0.562352]
[1722455938799,0.3,3266.7,3265.2,0.562352]
[1722455938800,3.0,3266.5,3265.2,0.562352]
[1722455938998,3.06162,3266.3,3265.2,0.562352]
[1722455939196,3.0,3266.2,3265.3,3.06245]
[1722455939455,3.0,3266.2,3265.5,3.06231]
[1722455939746,3.21281452,3266.8,3265.6,0.06123394]
[1722455939747,3.0,3266.7,3265.6,0.06123394]
[1722455939898,3.21288452,3266.8,3265.6,3.12344394]
[1722455940262,3.0,3266.7,3265.4,3.4248102]
[1722455940404,3.15171452,3266.8,3265.4,3.4248102]
[1722455940599,3.15171452,3266.8,3265.5,0.34248102]
[1722455940600,3.06136,3266.6,3265.5,0.34248102]
[1722455940819,3.0,3266.5,3265.5,0.34248102]
[1722455941240,0.62127245,3266.8,3265.2,0.562352]
[1722455941241,3.06157,3266.3,3265.2,0.562352]
[1722455941436,3.0,3266.2,3265.5,3.06225]
[1722455941611,3.0,3266.2,3265.2,0.562352]
[1722455941612,3.0,3266.6,3265.2,0.562352]
[1722455941812,3.0,3266.6,3265.3,3.06243]
[1722455942121,3.0,3266.6,3265.2,0.562352]
[1722455942437,3.0,3266.6,3265.3,0.06123528]
[1722455942739,3.0,3266.6,3265.3,3.06244]
[1722455942952,3.0,3266.6,3265.5,3.06229]
[1722455943136,6.06129,3266.6,3265.4,0.06123529]
[1722455943339,6.06129,3266.6,3265.3,3.06242]
[1722455943340,3.0,3266.6,3265.3,3.06242]
[1722455943528,3.667553,3266.5,3265.1,5.39064]
[1722455943750,3.06164,3266.3,3265.1,5.39063]
[1722455944063,6.06166,3266.2,3265.1,2.328]
[1722455944432,3.0,3266.2,3265.1,2.328]
[1722455944760,3.0,3266.4,3265.5,3.0623]
[1722455944913,0.15589071,3266.9,3265.6,3.12340527]
[1722455945119,3.06112,3266.8,3265.6,3.12340527]
[1722455945314,3.06093,3267.0,3265.6,0.06123527]
[1722455945315,3.0,3266.7,3265.6,0.06123527]
[1722455945520,0.0093,3266.2,3265.6,3.12339527]
[1722455945734,0.0093,3266.2,3265.6,0.06123527]
[1722455945938,0.0093,3266.2,3265.3,3.06247]
[1722455946107,0.0093,3266.2,3265.7,3.06212]
[1722455946313,0.0093,3266.2,3265.8,0.06123408]
[1722455947153,0.0093,3266.2,3265.8,3.12320408]
[1722455947446,0.0093,3266.2,3265.3,3.601517]
[1722455947447,0.0093,3266.2,3265.9,0.0612247]
[1722455947817,0.0093,3266.2,3265.9,3.06194]
[1722455948019,0.0093,3266.2,3266.1,5.34365]
[1722455948220,0.0093,3266.2,3266.1,8.4054]
[1722455948641,0.0093,3266.2,3266.1,16.0289]